Cogmind - Beta 16.1 @@@ ROGUE MODE // 2026.04.28 @ 21:54:42 Player: Lazz Result: Destroyed by B-75 Beast with Magnetic Acceleration Cannon Performance ------------- Evolutions (5) 2500 Regions Visited (8) 1600 Robots Destroyed (105) 525 Value Destroyed (2911) 2911 Prototype IDs (12) 240 Alien Tech Used (0) 0 Bonus (1004) 1004 TOTAL SCORE: 8780 Bonus ------- Follower Combat Kills 204 Registered with UFD 300 Met Optimus in HQ 500 Cogmind --------- Core Integrity 0/1000 Matter 126/300 Energy 100/100 System Corruption 39% Temperature Cool (15) Movement Flying (35) Location -5/Extension Parts ------- > --- POWER (2) -------- (None) > --- PROPULSION (4) --- Cooled Cesium-ion Thruster > --- UTILITY (5) ------ Enhanced Optical Array Enhanced Optical Array Improved Salvage Targeting Computer > --- WEAPON (6) ------- (None) > --- INVENTORY (5) ---- Improved Sensor Array System Shield High-powered Tractor Beam Peak State ------------ > --- POWER ------------ Cooled Ion Engine Light Angular Momentum Engine > --- PROPULSION ------- Improved Aluminum Leg Carbon-fiber Leg Carbon-fiber Leg Armored Leg > --- UTILITY ---------- High-capacity Storage Unit IFF Parser Experimental Terrain Scanner Advanced Terrain Scan Processor > --- WEAPON ----------- Light Assault Rifle Improved Assault Rifle Improved Assault Rifle Hypervelocity Gauss Rifle Heavy Machine Gun > --- INVENTORY -------- Light Deuterium Engine Light Treads Medium Treads Aluminum Leg Aluminum Leg Aluminum Leg Carbon-fiber Leg Medium Matter Pod Improved Terrain Scanner Target Analyzer Hardened Medium Armor Plating Improved Light Armor Plating Improved System Shield Light Assault Rifle Improved Assault Rifle Flak Gun Flak Gun Mini Grenade Launcher Mining Claw Heavy Pick [Rating: 62] Favorites ----------- Power Cooled Ion Engine Engine Cooled Ion Engine Power Core Light Nuclear Core Propulsion Aluminum Leg Treads Light Treads Leg Aluminum Leg Wheel Compact Wheel Flight Unit VTOL Module Utility High-capacity Storage Unit Device Seismic Detector Storage High-capacity Storage Unit Processor Advanced Terrain Scan Processor Protection Hardened Medium Armor Plating Weapon Improved Assault Rifle Ballistic Gun Improved Assault Rifle Launcher Mini Grenade Launcher Special Weapon Mining Laser Slashing Weapon Great Axe Piercing Weapon Heavy Pick Build | -11 -10 -9 -9 -9 -9 -6 -5 -5 ------- Run | Yrd Mat Mat Sto Rec Scr Fac Fac Ext Slots Evolved 10 | . . 2 . . . 6 2 . Power 1 | . . . . . . 1 . . Propulsion 2 | . . 1 . . . 1 . . Utility 3 | . . . . . . 2 1 . Weapon 4 | . . 1 . . . 2 1 . Parts Attached 100 | 7 8 23 6 4 4 23 25 . Power 9 | 1 1 2 1 . . 3 1 . Engine 8 | 1 1 2 1 . . 3 . . Core 1 | . . . . . . . 1 . Reactor . | . . . . . . . . . Propulsion 38 | 1 4 13 3 1 1 8 7 . Treads 1 | . . . . . . . 1 . Leg 31 | 1 4 13 3 1 1 8 . . Wheel 1 | . . . . . . . 1 . Hover . | . . . . . . . . . Flight 5 | . . . . . . . 5 . Utility 26 | 2 . 2 1 3 2 3 13 . Device 9 | 1 . 1 . . . 2 5 . Storage 6 | 1 . 1 1 2 1 . . . Processor 10 | . . . . 1 1 1 7 . Hackware . | . . . . . . . . . Protection 1 | . . . . . . . 1 . Artifact . | . . . . . . . . . Weapon 27 | 3 3 6 1 . 1 9 4 . Energy Gun . | . . . . . . . . . Energy Cannon . | . . . . . . . . . Ballistic Gun 23 | 3 2 6 1 . 1 8 2 . Ballistic Cannon . | . . . . . . . . . Launcher 1 | . . . . . . 1 . . Special Weapon 1 | . 1 . . . . . . . Impact Weapon . | . . . . . . . . . Slashing Weapon 1 | . . . . . . . 1 . Piercing Weapon 1 | . . . . . . . 1 . Special Melee Weapon . | . . . . . . . . . Unidentified Prototypes 2 | . . 1 . . . . 1 . Parts Lost 43 | . 1 1 1 2 . 21 15 2 Power 6 | . 1 1 . . . 3 1 . Propulsion 11 | . . . . 1 . 5 5 . Utility 12 | . . . 1 . . 3 7 1 Weapon 14 | . . . . 1 . 10 2 1 Highest Loss Streak 13 | . 1 1 1 2 . 9 13 2 To Critical Strikes 1 | . . . . . . . 1 . Average Backups 11 | 2 7 9 10 8 15 13 2 3 Power . | . . . . . . . . . Propulsion 1 | . 1 1 1 . . 2 . . Utility 4 | . 3 3 3 2 5 5 1 3 Weapon 5 | 1 2 4 6 6 7 5 . . Tool/Special . | . . . . . . . . . Unused Backups 13 | . . 3 1 . . 6 . 3 Power . | . . . . . . . . . Propulsion 4 | . . 1 . . . 1 . 2 Utility 7 | . . 1 1 . . 4 . 1 Weapon 2 | . . 1 . . . 1 . . Tool/Special . | . . . . . . . . . Average Slot Usage (%) 93 | . 94 97 98 98 100 96 22 35 Engine 10 | . 11 9 11 11 11 12 . . Leg 28 | . 25 32 33 32 33 25 . . Device 6 | . 14 11 9 . . 11 2 5 Storage 9 | . 14 11 11 11 11 5 . . Processor 5 | . . . . 10 11 6 6 17 Ballistic Gun 29 | . 27 32 32 32 33 31 1 . Peak Build Rating 62 | 6 8 17 18 18 24 62 38 29 Average Rating 23 | 5 7 13 17 16 21 50 15 27 On Entrance 13 | . 6 8 17 17 16 24 1 29 Avg Prop Armor Cover (%) 6 | . . . . . . . 6 . Naked Turns 58 | . . . . . . 15 43 . Heaviest Build 77 | 13 13 27 28 55 58 77 12 5 Greatest Support 61 | 10 20 30 30 30 33 61 20 6 Greatest Overweight (x) 2 | 1 1 . . 1 1 2 1 . Average Overweight (x) . | . . . . . 1 . . . Largest Inventory Capacity 20 | 8 8 10 10 20 20 20 5 5 Average Capacity 13 | 7 8 9 10 11 17 19 5 5 Most Carried 20 | 6 8 10 10 10 20 20 5 5 Average Carried 11 | 2 7 9 10 8 15 13 2 3 Final Capacity 20 | 8 8 10 10 15 20 5 5 5 Final Carried 18 | 6 8 10 10 9 18 5 5 3 Class Distribution -------------------- 37% | Gunner 20% | Scavenger-Gunner 16% | Mutant 16% | Skirmisher 6% | Scavenger-Skirmisher Dominant Class ---------------- Mutant | -10/Materials Scavenger-Gunner | -9/Materials Scavenger-Gunner | -9/Storage Scavenger-Gunner | -9/Recycling Gunner | -9/Scraptown Skirmisher | -6/Factory Mutant | -5/Factory Mutant | -5/Extension Resources | -11 -10 -9 -9 -9 -9 -6 -5 -5 ----------- Run | Yrd Mat Mat Sto Rec Scr Fac Fac Ext Matter Collected 3157 | 330 345 638 464 146 60 1084 90 . Remotely 40 | . . . . . . . 40 . Salvage Created 4059 | 155 509 1159 805 219 . 1033 179 . Parts 234 | 18 21 82 47 13 . 45 8 . Haulers Intercepted 7 | . . 4 3 . . . . . Recyclers Shooed 6 | . 1 2 1 . . 2 . . Parts Field Recycled . | . . . . . . . . . Retrieved Matter . | . . . . . . . . . Parts Self-Destructed . | . . . . . . . . . Prevented . | . . . . . . . . . Parts Restored . | . . . . . . . . . Kills | -11 -10 -9 -9 -9 -9 -6 -5 -5 ------- Run | Yrd Mat Mat Sto Rec Scr Fac Fac Ext Combat Hostiles Destroyed 76 | . 11 27 11 4 . 21 2 . Melee 2 | . . . . . . . 2 . Guns 74 | . 11 27 11 4 . 21 . . Classes Destroyed 12 | 3 2 4 2 . . 1 . . Worker 6 | 2 . . 2 . . 2 . . Builder 2 | . . . 2 . . . . . Tunneler 3 | 3 . . . . . . . . Hauler 7 | . . 4 3 . . . . . Recycler 3 | 1 . . 1 . . . 1 . Mechanic 1 | . . . 1 . . . . . Operator 4 | . 1 3 . . . . . . Watcher 3 | . . 3 . . . . . . Swarmer 23 | . . 14 1 . . 6 2 . Grunt 31 | . 11 5 4 . . 11 . . Sentry 19 | . . 8 6 4 . 1 . . Programmer 3 | . . . . . . 3 . . Best Kill Streak 7 | 2 2 7 5 1 . 4 3 . Combat Bots Only 6 | . 2 6 3 1 . 3 2 . Max Kills in Single Turn 2 | 1 1 2 2 1 . 2 1 . Gunslinging 1 | . . 1 . . . 1 . . Exploded . | . . . . . . . . . Melee 1 | . . . . . . . 1 . Uniques/NPCs Destroyed . | . . . . . . . . . Combat | -11 -10 -9 -9 -9 -9 -6 -5 -5 -------- Run | Yrd Mat Mat Sto Rec Scr Fac Fac Ext Hostile Shots Fired 575 | . 54 97 48 28 . 244 79 25 Missed 166 | . 12 21 14 6 . 76 24 13 Hits 409 | . 42 76 34 22 . 168 55 12 Melee 20 | . . . . . . 1 19 . Projectile 389 | . 42 76 34 22 . 167 36 12 Critical Strikes 13 | . . 2 . 2 . 4 5 . Damage Taken 7195 | . 473 857 464 321 . 3110 1633 337 Core 2177 | . 133 118 41 47 . 817 780 241 Absorbed by Shields . | . . . . . . . . . Regen/Repaired (Parts) 18 | . . . . . . 18 . . Core Remaining (%) 49 | 100 46 . . . 48 3 . . Volleys Fired 256 | 12 48 72 39 15 . 58 12 . Largest 5 | 2 2 3 3 3 . 5 2 . Hottest 129 | 40 100 100 100 69 . 129 51 . Shots Fired 747 | 24 95 210 115 42 . 245 16 . Gun 736 | 24 94 207 114 42 . 239 16 . Cannon . | . . . . . . . . . Launcher 6 | . . . . . . 6 . . Special 5 | . 1 3 1 . . . . . Kinetic 736 | 24 94 207 114 42 . 239 16 . Thermal 5 | . 1 3 1 . . . . . Explosive 6 | . . . . . . 6 . . Electromagnetic . | . . . . . . . . . Robot Hit Streak 27 | 6 11 16 27 13 . 12 8 . Robot Miss Streak 7 | 3 5 4 3 2 . 7 1 . Penetration Max 3 | . . . . . . 3 1 . Secondary Targets 13 | . 1 5 1 . . 6 . . Max Gunslinging Chain 1 | . 1 1 1 . . 1 . . Shots Hit Robots 504 | 14 65 128 81 33 . 161 22 . Core Hits 224 | 7 24 64 29 7 . 86 7 . Critical Kills 4 | . . . 1 . . 3 . . Critical Parts Destroyed 11 | . 2 . 2 . . 7 . . Critical Strikes 19 | . 2 . 3 . . 10 4 . Destroy 16 | . 2 . 3 . . 10 1 . Sever 1 | . . . . . . . 1 . Impale 2 | . . . . . . . 2 . Melee Attacks 12 | . . . . . . . 12 . Impact . | . . . . . . . . . Slashing 5 | . . . . . . . 5 . Piercing 7 | . . . . . . . 7 . Sneak Attacks 2 | . . . . . . . 2 . Combat Hostiles . | . . . . . . . . . Follow-up Attacks . | . . . . . . . . . Damage Inflicted 7207 | 179 692 1493 1357 495 . 2276 715 . Guns 6782 | 179 692 1493 1357 495 . 2241 325 . Cannons . | . . . . . . . . . Explosions 11 | . . . . . . 11 . . Melee 354 | . . . . . . . 354 . Ramming 60 | . . . . . . 24 36 . Kinetic 6782 | 179 692 1493 1357 495 . 2241 325 . Thermal . | . . . . . . . . . Explosive 11 | . . . . . . 11 . . Electromagnetic . | . . . . . . . . . Impact . | . . . . . . . . . Slashing 121 | . . . . . . . 121 . Piercing 233 | . . . . . . . 233 . Highest Corruption 39 | . . . . . . 9 39 39 Average Corruption 10 | . . . . . . 4 35 39 Corruption Purged . | . . . . . . . . . Corruption Blocked 5 | . . . . . . . 5 . Effects 55 | . . . . . . 30 20 5 Message Errors 10 | . . . . . . 9 . 1 Matter Fused 10 | . . . . . . 8 1 1 Heat Flow Errors 3 | . . . . . . 2 1 . Energy Discharges 6 | . . . . . . 2 4 . Data Loss (minor) 6 | . . . . . . 4 2 . Data Loss (major) 2 | . . . . . . 1 1 . Misfires 1 | . . . . . . 1 . . Alerts 2 | . . . . . . . 2 . Misdirections 12 | . . . . . . . 9 3 Weapon Failures 3 | . . . . . . 3 . . Overload Shots . | . . . . . . . . . Overflow Damage 14 | . . . . . . . 14 . Projectiles . | . . . . . . . . . Explosions . | . . . . . . . . . Melee 14 | . . . . . . . 14 . Knockbacks 1 | . . . . . . 1 . . Impact 1 | . . . . . . 1 . . Kinetic . | . . . . . . . . . Secondary . | . . . . . . . . . Self-Inflicted Damage 95 | . . . . . . 59 36 . Shots 2 | . . . . . . 2 . . Rammed 2 | . . . . . . 2 . . Targets Rammed 3 | . . . . . . 3 . . Kicked 1 | . . . . . . 1 . . Crushed . | . . . . . . . . . Highest Temperature 287 | . 20 28 50 24 . 287 158 . Average Temperature 39 | . 7 7 13 9 . 73 82 . Received Heat Transfer 1539 | . 252 225 171 135 . 660 45 51 Effects 2 | . . . . . . 2 . . Interference 2 | . . . . . . 2 . . Siege Activations . | . . . . . . . . . Martial Activations . | . . . . . . . . . Shielding Activations . | . . . . . . . . . Robots Disrupted . | . . . . . . . . . Combat Hostiles . | . . . . . . . . . Robots Corrupted . | . . . . . . . . . Combat Hostiles . | . . . . . . . . . Parts Fried . | . . . . . . . . . Impact Corruptions . | . . . . . . . . . Robots Melted . | . . . . . . . . . Combat Hostiles . | . . . . . . . . . Parts Melted . | . . . . . . . . . Heat Transferred . | . . . . . . . . . Parts Sabotaged 4 | . . . . . . 4 . . Parts Stolen . | . . . . . . . . . Parts Stripped . | . . . . . . . . . Power Chain Reactions . | . . . . . . . . . Alert | -11 -10 -9 -9 -9 -9 -6 -5 -5 ------- Run | Yrd Mat Mat Sto Rec Scr Fac Fac Ext Maximum Alert Level 1 | . . 1 1 . . 1 . . Low Security (%) 77 | 100 100 20 81 100 . 88 100 100 Level 1 22 | . . 79 18 . . 11 . . Level 2 . | . . . . . . . . . Level 3 . | . . . . . . . . . Level 4 . | . . . . . . . . . Level 5 . | . . . . . . . . . High Security . | . . . . . . . . . Max Security . | . . . . . . . . . Peak Influence 389 | 10 86 389 275 100 . 342 160 49 Initial 156 | . . 21 156 100 . . 125 49 Average 92 | 2 34 244 119 12 . 56 68 40 Influence Increases 2938 | 30 347 804 731 92 . 692 242 . Destroy 0b10 Robot/C 1740 | . 220 540 440 80 . 420 40 . Destroy 0b10 Robot/NC 150 | 30 5 50 50 . . 10 5 . Destroy Leader 410 | . 40 154 116 . . 100 . . Allied During Kill 107 | . . . 107 . . . . . Successful Hack 77 | . 36 11 . 12 . 18 . . Disable Machine 90 | . . 15 15 . . 15 45 . Destroy Structure 34 | . 1 4 3 . . 24 2 . Lose Combat Pursuer 330 | . 45 30 . . . 105 150 . Influence Decreases 2929 | 30 296 484 843 351 . 436 396 93 Entered New Map 588 | . . 30 215 159 . . 131 53 Time Decay 1459 | 30 269 444 198 132 . 236 130 20 Lost Part 405 | . 10 10 10 20 . 200 135 20 Lost Ally 187 | . . . 147 40 . . . . Purge Threat 290 | . 17 . 273 . . . . . Squads Dispatched 22 | . 4 4 3 . . 11 . . Investigation 12 | . 3 3 2 . . 4 . . Extermination 3 | . . . . . . 3 . . Reinforcement 7 | . 1 1 1 . . 4 . . Assault . | . . . . . . . . . Garrison . | . . . . . . . . . Intercept . | . . . . . . . . . Searches Triggered . | . . . . . . . . . Construction Impeded 1 | . . . . . . 1 . . Haulers Reinforced 1 | . . . . . . 1 . . Active Scanning Responses . | . . . . . . . . . Cargo Convoy Interrupts 1 | . . . . . . 1 . . Stealth | -11 -10 -9 -9 -9 -9 -6 -5 -5 --------- Run | Yrd Mat Mat Sto Rec Scr Fac Fac Ext Distress Signals 8 | . 1 4 . . . 2 1 . Communications Jammed . | . . . . . . . . . Distress Signals . | . . . . . . . . . Times Spotted 148 | . 18 36 20 4 . 50 15 5 Peak Tracking Total 14 | . 4 5 6 1 . 14 9 5 Tactical Retreats 13 | . 2 1 . . . 5 5 . Traps | -11 -10 -9 -9 -9 -9 -6 -5 -5 ------- Run | Yrd Mat Mat Sto Rec Scr Fac Fac Ext Traps Triggered 5 | . 1 1 . . . 2 1 . Indirectly . | . . . . . . . . . Trap Hack Attempts . | . . . . . . . . . Triggered . | . . . . . . . . . Disarmed . | . . . . . . . . . Reprogrammed . | . . . . . . . . . Reused . | . . . . . . . . . Traps Extracted . | . . . . . . . . . Installed . | . . . . . . . . . Triggered . | . . . . . . . . . Machines | -11 -10 -9 -9 -9 -9 -6 -5 -5 ---------- Run | Yrd Mat Mat Sto Rec Scr Fac Fac Ext Machines Disabled 6 | . . 1 1 . . 1 3 . Max in Single Turn 1 | . . 1 1 . . 1 1 . Machines Repaired . | . . . . . . . . . Machines Dismantled . | . . . . . . . . . Machines Sabotaged . | . . . . . . . . . Overloaded Fab Kills . | . . . . . . . . . Hacking | -11 -10 -9 -9 -9 -9 -6 -5 -5 --------- Run | Yrd Mat Mat Sto Rec Scr Fac Fac Ext Machines Accessed 31 | . 5 5 4 6 2 8 1 . Terminals 20 | . 5 3 4 5 . 2 1 . Fabricators 1 | . . . . . . 1 . . Repair Stations 1 | . . . . . . 1 . . Recycling Units 5 | . . . . 1 . 4 . . Scanalyzers 2 | . . 2 . . . . . . Garrison Access . | . . . . . . . . . Total Hacks 88 | . 19 14 12 15 9 17 2 . Successful 42 | . 9 7 2 6 9 9 . . Failed 46 | . 10 7 10 9 . 8 2 . Catastrophic 11 | . 3 2 3 2 . 1 . . Database Lockouts . | . . . . . . . . . Manual 42 | . 13 6 5 10 . 8 . . Terminals 62 | . 19 9 12 14 . 6 2 . Fabricators 2 | . . . . . . 2 . . Repair Stations 2 | . . . . . . 2 . . Recycling Units 8 | . . . . 1 . 7 . . Scanalyzers 5 | . . 5 . . . . . . Garrison Access . | . . . . . . . . . Terminal Hacks 26 | . 8 3 2 3 9 1 . . Record 4 | . . . . . 4 . . . Part Schematic 1 | . . . . 1 . . . . Robot Analysis 8 | . 2 1 . . 5 . . . Prototype ID Bank 1 | . . 1 . . . . . . Branch Access Points 1 | . . 1 . . . . . . Unreport Threat 5 | . 2 . 2 1 . . . . Locate Traps 1 | . . . . . . 1 . . Hauler Manifests 1 | . 1 . . . . . . . Registered Components 2 | . 1 . . 1 . . . . Zone Layout 2 | . 2 . . . . . . . Fabricator Hacks 1 | . . . . . . 1 . . Load Schematic 1 | . . . . . . 1 . . Repair Station Hacks 2 | . . . . . . 2 . . Scan Component 1 | . . . . . . 1 . . Repair 1 | . . . . . . 1 . . Recycling Unit Hacks 1 | . . . . 1 . . . . Retrieve Components 1 | . . . . 1 . . . . Scanalyzer 4 | . . 4 . . . . . . Insert Component 1 | . . 1 . . . . . . Retrieve Study 3 | . . 3 . . . . . . Garrison Access Hacks . | . . . . . . . . . Unauthorized Hacks 8 | . 1 . . 2 . 5 . . Terminals 3 | . 1 . . 2 . . . . Botnet 2 | . . . . 2 . . . . Operators 1 | . 1 . . . . . . . Fabricators 1 | . . . . . . 1 . . Fabnet 1 | . . . . . . 1 . . Repair Stations . | . . . . . . . . . Recycling Units 4 | . . . . . . 4 . . Fedlink 4 | . . . . . . 4 . . Scanalyzers . | . . . . . . . . . Garrison Access . | . . . . . . . . . Data Cores Recovered . | . . . . . . . . . Used . | . . . . . . . . . Hacking Detections 24 | . 5 5 4 5 . 4 1 . Full Trace Events 10 | . 2 3 3 2 . . . . Feedback Events . | . . . . . . . . . Feedback Blocked . | . . . . . . . . . Robot Schematics Acquired . | . . . . . . . . . Robots Built . | . . . . . . . . . Authchips . | . . . . . . . . . Time . | . . . . . . . . . Total Robot Build Rating . | . . . . . . . . . Part Schematics Acquired 1 | . . . . 1 . . . . Parts Built . | . . . . . . . . . Authchips . | . . . . . . . . . Time . | . . . . . . . . . Total Part Build Rating . | . . . . . . . . . Part Studies Acquired 3 | . . 3 . . . . . . Parts Repaired 1 | . . . . . . 1 . . Time 50 | . . . . . . 50 . . Parts Recycled . | . . . . . . . . . Recycled Matter . | . . . . . . . . . Retrieved Matter . | . . . . . . . . . Retrieved Components 4 | . . . . 4 . . . . Parts Scanalyzed . | . . . . . . . . . Part Schematics Acquired . | . . . . . . . . . Parts Damaged . | . . . . . . . . . Bothacking | -11 -10 -9 -9 -9 -9 -6 -5 -5 ------------ Run | Yrd Mat Mat Sto Rec Scr Fac Fac Ext Used RIF Installer . | . . . . . . . . . Robots Hacked . | . . . . . . . . . Non-combat . | . . . . . . . . . Combat . | . . . . . . . . . Robot Hacks Applied . | . . . . . . . . . Relay Couplers Released . | . . . . . . . . . Fabnet Peak Effective % 3 | . . . . . . . 3 3 Robots Rewired 1 | . . . 1 . . . . . Allies Hacked . | . . . . . . . . . Hacks Repelled . | . . . . . . . . . Allies | -11 -10 -9 -9 -9 -9 -6 -5 -5 -------- Run | Yrd Mat Mat Sto Rec Scr Fac Fac Ext Total Allies 10 | . . . 10 . . . . . Largest Group 10 | . . . 10 2 . . . . Highest-Rated Group 88 | . . . 88 16 . . . . Highest-Rated Ally 16 | . . . 16 8 . . . . Initial UFD Resources 43 | . . . . . . 22 43 43 Total Orders . | . . . . . . . . . Ally Attacks 61 | . . . 57 4 . . . . Total Damage 563 | . . . 531 32 . . . . Kills 12 | . . . 12 . . . . . Allies Corrupted . | . . . . . . . . . Allies Melted . | . . . . . . . . . Intel | -11 -10 -9 -9 -9 -9 -6 -5 -5 ------- Run | Yrd Mat Mat Sto Rec Scr Fac Fac Ext Active Infowar (turns) 4210 | 95 691 1157 407 . . 1605 206 49 Optics 148 | . . . . . . . 99 49 Sensors 121 | . . . . . . . 72 49 IFF 1467 | . . . . . . 1467 . . Terrain 1577 | . . . . . . 1516 61 . Seismic 2350 | 95 691 1157 407 . . . . . Robot Analysis Total 8 | . 2 1 . . 5 . . . Derelict Logs Recovered . | . . . . . . . . . Drone Launches . | . . . . . . . . . Drone Recoveries . | . . . . . . . . . Exploration | -11 -10 -9 -9 -9 -9 -6 -5 -5 ------------- Run | Yrd Mat Mat Sto Rec Scr Fac Fac Ext Turns Passed 7191 | 198 691 1157 460 731 1905 1623 377 49 Spaces Moved 4053 | 84 325 605 219 516 1049 571 546 138 Core 179 | 8 . . . . . 27 144 . Treads 39 | . . . . . . . 39 . Legs 3334 | 76 325 605 219 516 1049 544 . . Wheels . | . . . . . . . . . Hover . | . . . . . . . . . Flight 501 | . . . . . . . 363 138 Fastest Speed 29 | 50 120 105 105 105 175 50 29 35 Average Speed 131 | 168 127 110 105 125 179 177 47 35 Slowest Speed 260 | 190 190 120 105 175 180 260 160 35 Overloaded Moves . | . . . . . . . . . Propulsion Burnouts . | . . . . . . . . . Robots Hopped 1 | . . . . . . . 1 . Potential Cave-ins 6 | . . . . . . 6 . . Cave-ins Triggered . | . . . . . . . . . Exploration Rate (%) 41 | 3 54 55 30 84 87 16 15 33 Regions Visited 8 Branch Regions 4 Pre-discovered Areas 1 | . . . . . . 1 . . Known Exits Taken 1 | . . 1 . . . . . . Unknown Exits Taken 7 | 1 1 . 1 1 1 1 1 . Scrap Searched 4 | . . . . . 4 . . . Spaces Dug 44 | . 1 2 . . . 40 1 . Terrain Destroyed 53 | . 1 2 . . . 49 1 . Melee 1 | . . . . . . . 1 . Projectile 3 | . 1 2 . . . . . . AOE 49 | . . . . . . 49 . . Terrain Rammed 6 | . . . . . . . 6 . Walls Destroyed . | . . . . . . . . . Machines Disabled . | . . . . . . . . . Actions | -11 -10 -9 -9 -9 -9 -6 -5 -5 --------- Run | Yrd Mat Mat Sto Rec Scr Fac Fac Ext Total 5393 | 114 513 961 365 567 1066 1051 616 140 Wait 844 | 7 125 217 90 27 3 372 3 . Move 4044 | 83 324 604 218 515 1048 571 543 138 Hop 1 | . . . . . . . 1 . Pick Up 48 | 5 2 13 2 3 8 9 6 . Fast Attach 31 | 6 2 2 . . . 3 18 . Attach 28 | . . 1 . 3 . 15 9 . Detach 3 | . . . . . . . 3 . Swap 64 | 1 7 28 7 2 5 14 . . Drop 52 | . 5 24 7 2 2 7 3 2 Fire 256 | 12 48 72 39 15 . 58 12 . Melee 12 | . . . . . . . 12 . Ram 7 | . . . . . . 1 6 . Kick 1 | . . . . . . 1 . . Crush . | . . . . . . . . . Escape Stasis . | . . . . . . . . . Rewire 2 | . . . 2 . . . . . Trap . | . . . . . . . . . Miscellaneous . | . . . . . . . . . Route ------- -11/Scrapyard -10/Materials (discovered 2 exits: *Mat / [*Min]) -9/Materials (discovered 3 exits: *Min / *Sto x2) -9/Storage -9/Recycling (discovered 2 exits: [*Fac] / *Scr) -9/Scraptown (discovered 2 exits: *Fac x2) -6/Factory -5/Factory -5/Extension History --------- Turn | Location | Event 7 | -11/Scrapyard | Discovered new exit (range 15) 199 | -11/Scrapyard | Entered Materials 324 | -10/Materials | Build established: Mutant 619 | -10/Materials | Discovered new exit (range 3) 642 | -10/Materials | Discovered new exit (range 15) 811 | -10/Materials | Core integrity fell below 50% 890 | -10/Materials | Entered another Materials area 890 | -9/Materials | Evolved 2 slots: Propulsion x1, Weapon x1 1076 | -9/Materials | Discovered new exit (range 7) 1479 | -9/Materials | Build established: Scavenger-Gunner 2027 | -9/Materials | Discovered new exit (range 8) 2043 | -9/Materials | Identified exit to Mines 2043 | -9/Materials | Identified exit to Storage 2047 | -9/Materials | Entered Storage 2350 | -9/Storage | Assisted by bots powering up and referring to "LRC-V3" 2379 | -9/Storage | Used back door to open Recycling access 2379 | -9/Storage | Discovered new exit (range 5) 2487 | -9/Storage | Lost 6 allies 2507 | -9/Storage | Entered Recycling 2507 | -9/Recycling | Accompanied by 2 allies 2719 | -9/Recycling | Core integrity fell below 50% 2855 | -9/Recycling | Discovered new exit (range 6) 3194 | -9/Recycling | Scanned before Scraplab entrance 3220 | -9/Recycling | Entered Scraplab 3234 | -9/Recycling | Discovered new exit (range 2) 3238 | -9/Recycling | Entered Scraptown 3296 | -9/Scraptown | Build established: Gunner 3365 | -9/Scraptown | Heard Great Nut preacher, LISTEN AND RECITE! 3699 | -9/Scraptown | Discovered new exit (range 11) 3867 | -9/Scraptown | Visited Spacefarers 3913 | -9/Scraptown | Visited TADAMA 4208 | -9/Scraptown | Visited UFD Registry 4208 | -9/Scraptown | Registered with UFD as "Armorslider" 4268 | -9/Scraptown | Visited Junk Repository 4365 | -9/Scraptown | Visited Curators Association 4422 | -9/Scraptown | Visited Research Penetration Think Tank 4471 | -9/Scraptown | Visited A0-MCA Data Center 4483 | -9/Scraptown | Given a B+ rating by A0-MCA 4507 | -9/Scraptown | Visited Scrapoid Research Area 4539 | -9/Scraptown | Visited Infowarlord's Domain 4552 | -9/Scraptown | Found Exp. Terrain Scanner 4585 | -9/Scraptown | Visited Supply Room 4818 | -9/Scraptown | Visited Abandonware Association 4842 | -9/Scraptown | Learned abandonware demo "REPAIR.EXE" 4842 | -9/Scraptown | Learned abandonware demo "TRNCOAT.EXE" 4881 | -9/Scraptown | Visited Analyses Database 4921 | -9/Scraptown | Visited Science Guys 5032 | -9/Scraptown | Met Optimus 5032 | -9/Scraptown | Accepted into 0bPrime 5133 | -9/Scraptown | Discovered new exit (range 5) 5143 | -9/Scraptown | Entered Factory 5143 | -6/Factory | Evolved 6 slots: Power x1, Propulsion x1, Utility x2, Weapon x2 5261 | -6/Factory | Loaded intel: 8 recycling unit locations 5350 | -6/Factory | Repaired IFF Parser 5435 | -6/Factory | Build established: Skirmisher 6031 | -6/Factory | Learned location of Protoforge (-2) 6420 | -6/Factory | Discovered new exit (range 25) 6574 | -6/Factory | Lost 3 parts (1n2w) 6609 | -6/Factory | Build established: Scavenger-Skirmisher 6645 | -6/Factory | Lost 5 parts (1n4w) 6701 | -6/Factory | Lost 3 parts (1p1n1u) 6744 | -6/Factory | Cargo convoy interrupted 6751 | -6/Factory | Core integrity fell below 50% 6764 | -6/Factory | Core integrity fell below 20% 6766 | -6/Factory | Entered another Factory area 6766 | -5/Factory | Evolved 2 slots: Utility x1, Weapon x1 6780 | -5/Factory | Lost 9 parts (2p2n2u3w) 6929 | -5/Factory | System corruption reached 10% 6943 | -5/Factory | System corruption reached 30% 6980 | -5/Factory | Lost 13 parts (1p4n6u2w) 6989 | -5/Factory | Core integrity fell below 50% 7031 | -5/Factory | Build established: Mutant 7135 | -5/Factory | Discovered new exit (range 22) 7143 | -5/Factory | Entered Extension 7180 | -5/Extension | Spotted B-75 Beast 7183 | -5/Extension | Spotted B-75 Beast 7187 | -5/Extension | Core integrity fell below 20% 7192 | -5/Extension | Destroyed by B-75 Beast with Magnetic Acceleration Cannon Last Messages --------------- 07130_ TF Node disabled. 07130_ Imp. Sensor Array tumbles out of TF Node. 07134_ Acquired Imp. Sensor Array. 07135_ EXIT=FOUND 07142_ Connecting with Door Terminal... LOCATION=UNKNOWN GOAL=ESCAPE 07145_ Dropped Faulty Cld. Cesium-ion Thruster. 07148_ Q%K5YOIY1X |NQ6XOJMRCIIWL|IYJ 07183_ System corrupted: Matter fused (-5). 07184_ System corrupted: Slammed into wall. 07186_ K-01 Serf destroyed. 07186_ Penetrated by Slug. 07188_ Slug penetrates Wall. 07189_ Knocked back. 07190_ System corrupted: Slammed into ceiling. 07191_ Penetrated by Slug. 07192_ Great Axe destroyed. 07192_ Imp. Sensor Array destroyed. Map ----- +----------------------------------------------------+ | ?????????????????????????????????????????????????? | | ?????????????????????????????????????????????????? | | ?????????????????????????????????????????????????? | | ?????????????????????????????????????????????????? | | ??????????? ?????????? ??????????????????????????? | | ??????????? ?????????? ??????????????????????????? | | ??????????? ?????????? ??????????????????????????? | | ??????????? ?????????? ??????????????????????????? | | ??????????# #????????# #?????????????????????????? | | ??????????# #????????# #?????????????????????????? | | ??????????# #????????# #?????????????????????????? | | ??????????# #????????# #?????????????????????????? | | ??????????# #????????# #?????????????????????????? | | ??????????# #????????# +?????????????????????????? | | ??????????# #????????# #?????????????????????????? | | ??????????# #????????# #?????????????????????????? | | ??????????# #????????#Y#?????????????????????????? | | ??????????# #?######?# #?????????????????????????? | | ????????### ### ## ### ###???????????????????????? | | ???????##"" "" YY "" ""#???????????????????????? | | ???????#; " " " " #???????????????????????? | | ???????#; #???????????????????????? | | ??###???#u ##??????????????????????? | | ###"##### %#################??????? | | t%= k ??? | | @ ??? | | ??? | | ??? | | BB ???? | | ######### BB BB #####################???? | | ????????# BB #???????????????????????? | | ????????# #???????????????????????? | | ????????# #???????????????????????? | | ????????# #???????????????????????? | | ????????######T#"""#######???????????????????????? | | ?????????????###?????????????????????????????????? | | ?????????????????????????????????????????????????? | | | | | | | | | | | | | | | | | | | | | | | | | | | +----------------------------------------------------+ Best States ------------- Heat Dissipation 40 Energy Generation 27 Energy Capacity 330 Matter Stores 300 Matter Capacity 300 Sight Range 22 Robot Scan Range 15 Terrain Scan Range 30 Terrain Scan Density 210 Corruption Block 15 Armor Coverage 225 Evasion (%) 64 Targeting Accuracy 6 Launcher Accuracy 30 Target Analysis 5 Recoil Reduction 1 Salvage Targeting 2 Item Schematics ----------------- Minigun | -9/Recycling | Hacked Robot Schematics ------------------ None Fabricated ------------ Nothing Repaired ---------- IFF Parser | 35% | -6/Factory Studied --------- Lgt. Assault Rifle | -9/Materials | Hacked Aluminum Leg | -9/Materials | Hacked Lgt. Ion Engine | -9/Materials | Hacked Alien Tech Used ----------------- None Achievements -------------- None Challenges ------------ None Game ------ Seed ZhirovBorgGreatsword Manual? 0 Play Time 00:59:13 Cumulative 176.2 hours Start 2026.04.28 @ 20:41:53 End 2026.04.28 @ 21:54:42 Sessions 3 Manual Loads 0 Difficulty Rogue Special Mode None Game No. 249 Rogue 249 Adventurer 0 Explorer 0 Win Type - Total 2 Types 1/0/0/1/0/0/0/0/0/0 Lore% 71 Gallery% 59 Achievement% 45 Wizard Run 0 Options --------- Layout 2 ASCII 0 Keyboard 0 Movement Mouse Keybinds 0 Fullscreen 1 Font 16/SmallcapsGlow Map View 50x49 Zoom Use 63% Tactical HUD 1 Map Filters NONE Filters NONE Steam SD RUN: 7297e35c-8f91-4549-a30e-db32d2f8a224